[Event "Late Titled Tuesday Blitz February 8 2022"]
[White "Polanco Nunez, Yoel Estarling"]
[Black "Potapova, Margarita"]
[WhiteFideId "6401783"]
[BlackFideId "14126869"]
[WhiteElo "2132"]
[BlackElo "2209"]
[Result "0-1"]
[Round "03"]
[TimeControl "180+1"]
[Date "2022.02.09"]
[WhiteClock "0:00:07"]
[BlackClock "0:00:12"]

1. e4 {[%clk 0:03:00]}  c5 {[%clk 0:02:59]} 2. Nf3 {[%clk 0:03:00]}  d6 {[%clk 0:02:59]} 3. c3 {[%clk 0:02:56]}  Nf6 {[%clk 0:02:56]} 4. Be2 {[%clk 0:02:55]}  g6 {[%clk 0:02:55]} 5. O-O {[%clk 0:02:53]}  Bg7 {[%clk 0:02:55]} 6. Bb5+ {[%clk 0:02:54]}  Bd7 {[%clk 0:02:53]} 7. Bxd7+ {[%clk 0:02:54]}  Qxd7 {[%clk 0:02:53]} 8. Re1 {[%clk 0:02:54]}  O-O {[%clk 0:02:50]} 9. d4 {[%clk 0:02:54]}  Nc6 {[%clk 0:02:45]} 10. Bg5 {[%clk 0:02:46]}  cxd4 {[%clk 0:02:37]} 11. cxd4 {[%clk 0:02:37]}  d5 {[%clk 0:02:38]} 12. e5 {[%clk 0:02:32]}  Ne4 {[%clk 0:02:38]} 13. Be3 {[%clk 0:02:24]}  f6 {[%clk 0:02:37]} 14. exf6 {[%clk 0:02:18]}  exf6 {[%clk 0:02:38]} 15. Nc3 {[%clk 0:02:18]}  f5 {[%clk 0:02:39]} 16. Qb3 {[%clk 0:02:17]}  Rad8 {[%clk 0:02:32]} 17. Rac1 {[%clk 0:02:12]}  Kh8 {[%clk 0:02:31]} 18. Nxe4 {[%clk 0:02:05]}  dxe4 {[%clk 0:02:20]} 19. Ne5 {[%clk 0:02:04]}  Nxe5 {[%clk 0:02:13]} 20. dxe5 {[%clk 0:02:04]}  Bxe5 {[%clk 0:02:11]} 21. Red1 {[%clk 0:02:01]}  Qg7 {[%clk 0:02:01]} 22. Bxa7 {[%clk 0:01:55]}  Bxb2 {[%clk 0:01:56]} 23. Rb1 {[%clk 0:01:54]}  Be5 {[%clk 0:01:54]} 24. Bb6 {[%clk 0:01:23]}  Rc8 {[%clk 0:01:50]} 25. Ba5 {[%clk 0:01:20]}  Ra8 {[%clk 0:01:43]} 26. Be1 {[%clk 0:01:18]}  f4 {[%clk 0:01:33]} 27. Rd5 {[%clk 0:01:16]}  Bf6 {[%clk 0:01:10]} 28. a4 {[%clk 0:01:10]}  Rfe8 {[%clk 0:00:59]} 29. h3 {[%clk 0:00:54]}  e3 {[%clk 0:00:58]} 30. fxe3 {[%clk 0:00:52]}  fxe3 {[%clk 0:00:58]} 31. Qb5 {[%clk 0:00:47]}  e2 {[%clk 0:00:54]} 32. Qd3 {[%clk 0:00:43]}  Rxa4 {[%clk 0:00:46]} 33. Rd6 {[%clk 0:00:36]}  Rd4 {[%clk 0:00:43]} 34. Rxd4 {[%clk 0:00:34]}  Bxd4+ {[%clk 0:00:44]} 35. Kh1 {[%clk 0:00:34]}  Qf6 {[%clk 0:00:41]} 36. Qf3 {[%clk 0:00:27]}  Qxf3 {[%clk 0:00:35]} 37. gxf3 {[%clk 0:00:27]}  b6 {[%clk 0:00:33]} 38. Kg2 {[%clk 0:00:26]}  Kg7 {[%clk 0:00:32]} 39. Rb4 {[%clk 0:00:25]}  Bc5 {[%clk 0:00:29]} 40. Rb3 {[%clk 0:00:16]}  Kf6 {[%clk 0:00:28]} 41. Rd3 {[%clk 0:00:14]}  Kf5 {[%clk 0:00:26]} 42. Rd7 {[%clk 0:00:13]}  Re7 {[%clk 0:00:25]} 43. Rd8 {[%clk 0:00:11]}  b5 {[%clk 0:00:21]} 44. Rb8 {[%clk 0:00:11]}  b4 {[%clk 0:00:20]} 45. Rb5 {[%clk 0:00:11]}  Rc7 {[%clk 0:00:20]} 46. Bf2 {[%clk 0:00:10]}  Ke6 {[%clk 0:00:17]} 47. Be1 {[%clk 0:00:08]}  Kd6 {[%clk 0:00:14]} 48. Bg3+ {[%clk 0:00:07]}  Kc6 {[%clk 0:00:13]} 49. Bxc7 {[%clk 0:00:07]}  e1=Q {[%clk 0:00:12]} 0-1


[Site "https://www.chess.com"]

[Event "Late Titled Tuesday Blitz February 8 2022"]
[White "Prieto Aranguren, Alain"]
[Black "Golubovskis, Maksims"]
[WhiteFideId "2268906"]
[BlackFideId "11608528"]
[WhiteElo "2235"]
[BlackElo "2066"]
[Result "1-0"]
[Round "03"]
[TimeControl "180+1"]
[Date "2022.02.09"]
[WhiteClock "0:00:48"]
[BlackClock "0:00:01"]

1. e4 {[%clk 0:02:43]}  c5 {[%clk 0:02:58]} 2. Nc3 {[%clk 0:02:33]}  d6 {[%clk 0:02:53]} 3. g3 {[%clk 0:02:29]}  Nc6 {[%clk 0:02:49]} 4. Bg2 {[%clk 0:02:25]}  g6 {[%clk 0:02:32]} 5. d3 {[%clk 0:02:03]}  Bg7 {[%clk 0:02:31]} 6. Be3 {[%clk 0:01:42]}  Nf6 {[%clk 0:02:28]} 7. Qd2 {[%clk 0:01:37]}  Ng4 {[%clk 0:02:02]} 8. Bf4 {[%clk 0:01:37]}  e5 {[%clk 0:01:49]} 9. Bg5 {[%clk 0:01:37]}  f6 {[%clk 0:01:46]} 10. h3 {[%clk 0:01:34]}  fxg5 {[%clk 0:01:19]} 11. hxg4 {[%clk 0:01:33]}  Bxg4 {[%clk 0:01:17]} 12. Nd5 {[%clk 0:01:31]}  Be6 {[%clk 0:00:41]} 13. Nh3 {[%clk 0:01:26]}  g4 {[%clk 0:00:29]} 14. Ng5 {[%clk 0:01:21]}  Bg8 {[%clk 0:00:23]} 15. O-O-O {[%clk 0:01:11]}  Bf6 {[%clk 0:00:16]} 16. f4 {[%clk 0:01:07]}  Bxg5 {[%clk 0:00:12]} 17. fxg5 {[%clk 0:01:06]}  Be6 {[%clk 0:00:13]} 18. Nf6+ {[%clk 0:01:05]}  Ke7 {[%clk 0:00:11]} 19. Rdf1 {[%clk 0:01:04]}  Rf8 {[%clk 0:00:08]} 20. Rxh7+ {[%clk 0:01:03]}  Rf7 {[%clk 0:00:05]} 21. Rxf7+ {[%clk 0:01:01]}  Bxf7 {[%clk 0:00:06]} 22. Qf2 {[%clk 0:00:59]}  Qa5 {[%clk 0:00:02]} 23. Nd5+ {[%clk 0:00:54]}  Bxd5 {[%clk 0:00:02]} 24. exd5 {[%clk 0:00:54]}  Qxa2 {[%clk 0:00:01]} 25. Qf6+ {[%clk 0:00:52]}  Kd7 {[%clk 0:00:01]} 26. dxc6+ {[%clk 0:00:48]} 1-0


[Site "https://www.chess.com"]

[Event "Late Titled Tuesday Blitz February 8 2022"]
[White "Rangel, Daniel"]
[Black "Pesotskiy, Mikhail"]
[WhiteFideId "2124475"]
[BlackFideId "34164453"]
[WhiteElo "2187"]
[BlackElo "2010"]
[Result "1-0"]
[Round "03"]
[TimeControl "180+1"]
[Date "2022.02.09"]
[WhiteClock "0:01:13"]
[BlackClock "0:00:50"]

1. c4 {[%clk 0:03:00]}  e5 {[%clk 0:03:00]} 2. g3 {[%clk 0:03:01]}  Nc6 {[%clk 0:03:00]} 3. Bg2 {[%clk 0:03:01]}  Bc5 {[%clk 0:03:01]} 4. Nc3 {[%clk 0:03:01]}  a6 {[%clk 0:03:02]} 5. e3 {[%clk 0:03:01]}  d6 {[%clk 0:03:02]} 6. Nge2 {[%clk 0:03:02]}  Ba7 {[%clk 0:03:03]} 7. O-O {[%clk 0:03:02]}  h5 {[%clk 0:03:03]} 8. Nd5 {[%clk 0:02:54]}  h4 {[%clk 0:03:01]} 9. d4 {[%clk 0:02:53]}  Nf6 {[%clk 0:02:35]} 10. dxe5 {[%clk 0:02:46]}  dxe5 {[%clk 0:02:30]} 11. Nec3 {[%clk 0:02:45]}  hxg3 {[%clk 0:02:08]} 12. hxg3 {[%clk 0:02:41]}  Bh3 {[%clk 0:02:07]} 13. Bxh3 {[%clk 0:02:37]}  Rxh3 {[%clk 0:02:08]} 14. Kg2 {[%clk 0:02:36]}  Rh8 {[%clk 0:02:05]} 15. Rh1 {[%clk 0:02:20]}  Rxh1 {[%clk 0:01:47]} 16. Qxh1 {[%clk 0:02:19]}  Nxd5 {[%clk 0:01:45]} 17. Qh8+ {[%clk 0:02:03]}  Kd7 {[%clk 0:01:43]} 18. Qh3+ {[%clk 0:02:03]}  Kd6 {[%clk 0:01:04]} 19. cxd5 {[%clk 0:01:33]}  Ne7 {[%clk 0:01:05]} 20. b3 {[%clk 0:01:25]}  c6 {[%clk 0:00:59]} 21. Ba3+ {[%clk 0:01:23]}  c5 {[%clk 0:00:50]} 22. Ne4+ {[%clk 0:01:17]}  Kxd5 {[%clk 0:00:50]} 23. Rd1+ {[%clk 0:01:16]}  Kxe4 {[%clk 0:00:50]} 24. Qg4# {[%clk 0:01:13]} 1-0


[Site "https://www.chess.com"]

[Event "Late Titled Tuesday Blitz February 8 2022"]
[White "Riehle, Marco"]
[Black "Bilan, Danila"]
[WhiteFideId "12904392"]
[BlackFideId "24161918"]
[WhiteElo "2684"]
[BlackElo "2478"]
[Result "1-0"]
[Round "03"]
[TimeControl "180+1"]
[Date "2022.02.09"]
[WhiteClock "0:02:02"]
[BlackClock "0:00:01"]

1. e4 {[%clk 0:03:00]}  c6 {[%clk 0:02:58]} 2. c4 {[%clk 0:02:59]}  d5 {[%clk 0:02:50]} 3. exd5 {[%clk 0:03:00]}  cxd5 {[%clk 0:02:51]} 4. cxd5 {[%clk 0:03:01]}  Nf6 {[%clk 0:02:52]} 5. Nc3 {[%clk 0:03:01]}  Nxd5 {[%clk 0:02:52]} 6. Nf3 {[%clk 0:03:02]}  Nc6 {[%clk 0:02:52]} 7. Bb5 {[%clk 0:03:02]}  e6 {[%clk 0:02:51]} 8. O-O {[%clk 0:03:01]}  Be7 {[%clk 0:02:51]} 9. d4 {[%clk 0:03:01]}  O-O {[%clk 0:02:50]} 10. Re1 {[%clk 0:03:02]}  Bf6 {[%clk 0:02:43]} 11. Ne4 {[%clk 0:03:01]}  Nce7 {[%clk 0:02:42]} 12. Nxf6+ {[%clk 0:03:01]}  Nxf6 {[%clk 0:02:40]} 13. Bg5 {[%clk 0:03:01]}  Ned5 {[%clk 0:02:30]} 14. Ne5 {[%clk 0:03:01]}  Qb6 {[%clk 0:02:22]} 15. Bd3 {[%clk 0:02:58]}  Qxb2 {[%clk 0:02:13]} 16. Qf3 {[%clk 0:02:58]}  Qxd4 {[%clk 0:02:01]} 17. Rad1 {[%clk 0:02:58]}  Qa4 {[%clk 0:01:39]} 18. Bb1 {[%clk 0:02:43]}  h6 {[%clk 0:01:16]} 19. Bc1 {[%clk 0:02:37]}  b6 {[%clk 0:01:05]} 20. Qg3 {[%clk 0:02:28]}  Nh5 {[%clk 0:00:25]} 21. Qf3 {[%clk 0:02:18]}  Qh4 {[%clk 0:00:20]} 22. g3 {[%clk 0:02:15]}  Qh3 {[%clk 0:00:20]} 23. Rd4 {[%clk 0:02:07]}  Ndf4 {[%clk 0:00:03]} 24. Bxf4 {[%clk 0:02:05]}  Ba6 {[%clk 0:00:01]} 25. Bc1 {[%clk 0:02:02]} 1-0


[Site "https://www.chess.com"]

[Event "Late Titled Tuesday Blitz February 8 2022"]
[White "Santos, Rafael Ventura Dos"]
[Black "Kukula, Pawel"]
[WhiteFideId "2122227"]
[BlackFideId "1115081"]
[WhiteElo "2191"]
[BlackElo "2203"]
[Result "0-1"]
[Round "03"]
[TimeControl "180+1"]
[Date "2022.02.09"]
[WhiteClock "0:00:31"]
[BlackClock "0:01:16"]

1. e4 {[%clk 0:03:00]}  Nc6 {[%clk 0:02:58]} 2. Nf3 {[%clk 0:03:00]}  d6 {[%clk 0:02:58]} 3. h3 {[%clk 0:02:59]}  Nf6 {[%clk 0:02:58]} 4. Nc3 {[%clk 0:02:54]}  g6 {[%clk 0:02:58]} 5. Bb5 {[%clk 0:02:42]}  Bg7 {[%clk 0:02:57]} 6. Bxc6+ {[%clk 0:02:41]}  bxc6 {[%clk 0:02:58]} 7. O-O {[%clk 0:02:41]}  O-O {[%clk 0:02:58]} 8. d4 {[%clk 0:02:37]}  Ba6 {[%clk 0:02:54]} 9. Re1 {[%clk 0:02:37]}  Nd7 {[%clk 0:02:54]} 10. b3 {[%clk 0:02:36]}  c5 {[%clk 0:02:55]} 11. Bb2 {[%clk 0:02:34]}  cxd4 {[%clk 0:02:55]} 12. Nxd4 {[%clk 0:02:34]}  c5 {[%clk 0:02:53]} 13. Nc6 {[%clk 0:02:25]}  Qe8 {[%clk 0:02:53]} 14. Rb1 {[%clk 0:02:00]}  Nb6 {[%clk 0:02:32]} 15. Na5 {[%clk 0:01:38]}  Rd8 {[%clk 0:02:14]} 16. Qd2 {[%clk 0:01:28]}  e6 {[%clk 0:02:12]} 17. Rbd1 {[%clk 0:01:25]}  c4 {[%clk 0:02:02]} 18. Ba1 {[%clk 0:01:14]}  cxb3 {[%clk 0:02:01]} 19. axb3 {[%clk 0:01:14]}  Rc8 {[%clk 0:01:50]} 20. g3 {[%clk 0:01:00]}  Qe7 {[%clk 0:01:39]} 21. Ne2 {[%clk 0:00:48]}  Bxa1 {[%clk 0:01:36]} 22. Rxa1 {[%clk 0:00:48]}  Bxe2 {[%clk 0:01:34]} 23. Rxe2 {[%clk 0:00:47]}  Rfd8 {[%clk 0:01:33]} 24. c4 {[%clk 0:00:45]}  Qf6 {[%clk 0:01:26]} 25. Rd1 {[%clk 0:00:38]}  d5 {[%clk 0:01:26]} 26. exd5 {[%clk 0:00:36]}  exd5 {[%clk 0:01:27]} 27. c5 {[%clk 0:00:34]}  Nd7 {[%clk 0:01:19]} 28. b4 {[%clk 0:00:33]}  Ne5 {[%clk 0:01:16]} 29. f4 {[%clk 0:00:31]}  Nf3+ {[%clk 0:01:16]} 0-1


[Site "https://www.chess.com"]

[Event "Late Titled Tuesday Blitz February 8 2022"]
[White "Sevian, Samuel"]
[Black "Erdogdu, Mert"]
[WhiteFideId "2040506"]
[BlackFideId "6301495"]
[WhiteElo "2698"]
[BlackElo "2485"]
[Result "0-1"]
[Round "03"]
[TimeControl "180+1"]
[Date "2022.02.08"]
[WhiteClock "0:00:10"]
[BlackClock "0:00:05"]

1. d4 {[%clk 0:02:58]}  d5 {[%clk 0:02:59]} 2. c4 {[%clk 0:02:57]}  e6 {[%clk 0:02:59]} 3. Nf3 {[%clk 0:02:57]}  c5 {[%clk 0:03:00]} 4. g3 {[%clk 0:02:58]}  Nf6 {[%clk 0:02:59]} 5. Bg2 {[%clk 0:02:58]}  Nc6 {[%clk 0:02:59]} 6. cxd5 {[%clk 0:02:58]}  exd5 {[%clk 0:03:00]} 7. O-O {[%clk 0:02:58]}  Be7 {[%clk 0:03:00]} 8. Nc3 {[%clk 0:02:58]}  O-O {[%clk 0:03:01]} 9. Bg5 {[%clk 0:02:59]}  cxd4 {[%clk 0:03:00]} 10. Nxd4 {[%clk 0:02:58]}  h6 {[%clk 0:03:00]} 11. Bf4 {[%clk 0:02:42]}  Re8 {[%clk 0:02:31]} 12. Rc1 {[%clk 0:02:41]}  Qb6 {[%clk 0:02:03]} 13. Nxc6 {[%clk 0:02:35]}  bxc6 {[%clk 0:02:02]} 14. Na4 {[%clk 0:02:35]}  Qb5 {[%clk 0:02:01]} 15. Be5 {[%clk 0:02:27]}  Bg4 {[%clk 0:01:57]} 16. Re1 {[%clk 0:02:27]}  Bb4 {[%clk 0:01:34]} 17. Nc3 {[%clk 0:02:27]}  Bxc3 {[%clk 0:01:33]} 18. Bxc3 {[%clk 0:02:28]}  Rxe2 {[%clk 0:01:17]} 19. Bf1 {[%clk 0:02:26]}  Rxe1 {[%clk 0:01:16]} 20. Qxe1 {[%clk 0:02:27]}  Qa4 {[%clk 0:01:07]} 21. b3 {[%clk 0:01:59]}  Qxa2 {[%clk 0:00:51]} 22. Bxf6 {[%clk 0:01:52]}  gxf6 {[%clk 0:00:50]} 23. Rxc6 {[%clk 0:01:49]}  Kg7 {[%clk 0:00:24]} 24. Qc3 {[%clk 0:01:18]}  Be6 {[%clk 0:00:19]} 25. Qb4 {[%clk 0:01:10]}  Re8 {[%clk 0:00:16]} 26. h4 {[%clk 0:01:06]}  Qb1 {[%clk 0:00:15]} 27. Qa3 {[%clk 0:01:03]}  d4 {[%clk 0:00:08]} 28. Rc1 {[%clk 0:01:02]}  Qe4 {[%clk 0:00:08]} 29. Bg2 {[%clk 0:00:59]}  Qe5 {[%clk 0:00:08]} 30. Qxa7 {[%clk 0:00:57]}  d3 {[%clk 0:00:06]} 31. Qa2 {[%clk 0:00:49]}  Rd8 {[%clk 0:00:06]} 32. Qd2 {[%clk 0:00:26]}  Bxb3 {[%clk 0:00:05]} 33. Re1 {[%clk 0:00:26]}  Qxe1+ {[%clk 0:00:04]} 34. Qxe1 {[%clk 0:00:23]}  d2 {[%clk 0:00:05]} 35. Qe3 {[%clk 0:00:17]}  d1=Q+ {[%clk 0:00:06]} 36. Kh2 {[%clk 0:00:18]}  Bd5 {[%clk 0:00:06]} 37. f3 {[%clk 0:00:16]}  Be6 {[%clk 0:00:06]} 38. Qf4 {[%clk 0:00:14]}  Qd2 {[%clk 0:00:07]} 39. Qe4 {[%clk 0:00:13]}  Bd5 {[%clk 0:00:06]} 40. Qg4+ {[%clk 0:00:13]}  Kf8 {[%clk 0:00:07]} 41. Qf5 {[%clk 0:00:12]}  Be6 {[%clk 0:00:06]} 42. Qxf6 {[%clk 0:00:12]}  Ke8 {[%clk 0:00:06]} 43. h5 {[%clk 0:00:12]}  Rd5 {[%clk 0:00:05]} 44. g4 {[%clk 0:00:11]}  Qg5 {[%clk 0:00:05]} 45. Qh8+ {[%clk 0:00:11]}  Ke7 {[%clk 0:00:06]} 46. Qa8 {[%clk 0:00:12]}  Qe5+ {[%clk 0:00:06]} 47. Kh3 {[%clk 0:00:12]}  Qxh5+ {[%clk 0:00:05]} 48. Kg3 {[%clk 0:00:12]}  Qe5+ {[%clk 0:00:06]} 49. Kh3 {[%clk 0:00:13]}  h5 {[%clk 0:00:06]} 50. f4 {[%clk 0:00:09]}  Bxg4+ {[%clk 0:00:05]} 51. Kh4 {[%clk 0:00:09]}  Qf6+ {[%clk 0:00:05]} 52. Kg3 {[%clk 0:00:09]}  Rd3+ {[%clk 0:00:05]} 53. Kh2 {[%clk 0:00:10]}  Qxf4+ {[%clk 0:00:05]} 54. Kg1 {[%clk 0:00:10]}  Rd1+ {[%clk 0:00:05]} 0-1


[Site "https://www.chess.com"]

[Event "Late Titled Tuesday Blitz February 8 2022"]
[White "Shoker, Samy"]
[Black "Zivkovic, Nemanja"]
[WhiteFideId "627143"]
[BlackFideId "942154"]
[WhiteElo "2493"]
[BlackElo "2388"]
[Result "1-0"]
[Round "03"]
[TimeControl "180+1"]
[Date "2022.02.08"]
[WhiteClock "0:00:15"]
[BlackClock "0:00:05"]

1. Nf3 {[%clk 0:03:00]}  Nf6 {[%clk 0:02:58]} 2. g3 {[%clk 0:03:01]}  d5 {[%clk 0:02:58]} 3. Bg2 {[%clk 0:03:01]}  e6 {[%clk 0:02:58]} 4. O-O {[%clk 0:03:01]}  Be7 {[%clk 0:02:59]} 5. d3 {[%clk 0:03:02]}  O-O {[%clk 0:03:00]} 6. Nbd2 {[%clk 0:03:03]}  c5 {[%clk 0:03:00]} 7. e4 {[%clk 0:03:03]}  Nc6 {[%clk 0:03:00]} 8. Re1 {[%clk 0:03:03]}  Qc7 {[%clk 0:03:01]} 9. Qe2 {[%clk 0:03:01]}  b5 {[%clk 0:02:59]} 10. e5 {[%clk 0:02:57]}  Nd7 {[%clk 0:02:59]} 11. Nf1 {[%clk 0:02:58]}  Rd8 {[%clk 0:02:58]} 12. Bf4 {[%clk 0:02:57]}  Nf8 {[%clk 0:02:53]} 13. h4 {[%clk 0:02:54]}  h6 {[%clk 0:02:54]} 14. h5 {[%clk 0:02:54]}  Nh7 {[%clk 0:02:54]} 15. Ne3 {[%clk 0:02:47]}  a5 {[%clk 0:02:53]} 16. c4 {[%clk 0:02:44]}  bxc4 {[%clk 0:02:39]} 17. dxc4 {[%clk 0:02:45]}  d4 {[%clk 0:02:29]} 18. Ng4 {[%clk 0:02:41]}  Bf8 {[%clk 0:02:27]} 19. Nd2 {[%clk 0:02:31]}  d3 {[%clk 0:02:06]} 20. Qf1 {[%clk 0:02:03]}  Bb7 {[%clk 0:01:51]} 21. a3 {[%clk 0:01:52]}  Rab8 {[%clk 0:01:46]} 22. Rab1 {[%clk 0:01:34]}  a4 {[%clk 0:01:35]} 23. Be4 {[%clk 0:01:31]}  Be7 {[%clk 0:00:53]} 24. Bxd3 {[%clk 0:01:09]}  Rd4 {[%clk 0:00:35]} 25. Nf3 {[%clk 0:01:02]}  Rxd3 {[%clk 0:00:20]} 26. Qxd3 {[%clk 0:01:02]}  Rd8 {[%clk 0:00:21]} 27. Qe2 {[%clk 0:00:41]}  Nd4 {[%clk 0:00:21]} 28. Nxd4 {[%clk 0:00:41]}  Rxd4 {[%clk 0:00:22]} 29. f3 {[%clk 0:00:38]}  Bg5 {[%clk 0:00:19]} 30. Be3 {[%clk 0:00:35]}  Bxe3+ {[%clk 0:00:19]} 31. Qxe3 {[%clk 0:00:35]}  Ng5 {[%clk 0:00:19]} 32. Nh2 {[%clk 0:00:33]}  Qc6 {[%clk 0:00:19]} 33. Rbd1 {[%clk 0:00:32]}  Rxc4 {[%clk 0:00:13]} 34. Rd8+ {[%clk 0:00:32]}  Kh7 {[%clk 0:00:13]} 35. Qd3+ {[%clk 0:00:32]}  g6 {[%clk 0:00:12]} 36. hxg6+ {[%clk 0:00:32]}  Kg7 {[%clk 0:00:12]} 37. gxf7 {[%clk 0:00:31]}  Nxf7 {[%clk 0:00:13]} 38. Rd7 {[%clk 0:00:29]}  Rd4 {[%clk 0:00:12]} 39. Rxd4 {[%clk 0:00:29]}  cxd4 {[%clk 0:00:13]} 40. Qxd4 {[%clk 0:00:29]}  Ng5 {[%clk 0:00:13]} 41. Qc3 {[%clk 0:00:23]}  Qd5 {[%clk 0:00:12]} 42. Kg2 {[%clk 0:00:20]}  Nf7 {[%clk 0:00:09]} 43. Re2 {[%clk 0:00:19]}  Ng5 {[%clk 0:00:09]} 44. Rd2 {[%clk 0:00:19]}  Qb5 {[%clk 0:00:09]} 45. Qc7+ {[%clk 0:00:16]}  Kg6 {[%clk 0:00:09]} 46. Qc2+ {[%clk 0:00:16]}  Kh5 {[%clk 0:00:07]} 47. Qd3 {[%clk 0:00:17]}  Qc6 {[%clk 0:00:07]} 48. Qd4 {[%clk 0:00:15]}  Kg6 {[%clk 0:00:06]} 49. Qd3+ {[%clk 0:00:14]}  Kh5 {[%clk 0:00:07]} 50. Rc2 {[%clk 0:00:14]}  Qb6 {[%clk 0:00:05]} 51. Qc4 {[%clk 0:00:13]}  Qe3 {[%clk 0:00:05]} 52. Qg4+ {[%clk 0:00:14]}  Kg6 {[%clk 0:00:05]} 53. Rf2 {[%clk 0:00:14]}  h5 {[%clk 0:00:05]} 54. Qf4 {[%clk 0:00:14]}  Qe1 {[%clk 0:00:04]} 55. Qf6+ {[%clk 0:00:14]}  Kh7 {[%clk 0:00:05]} 56. Qxg5 {[%clk 0:00:15]}  h4 {[%clk 0:00:05]} 57. Qxh4+ {[%clk 0:00:15]} 1-0


[Site "https://www.chess.com"]

[Event "Late Titled Tuesday Blitz February 8 2022"]
[White "Solon, Nathan"]
[Black "Stanisz, Patryk"]
[WhiteFideId "2017229"]
[BlackFideId "1123106"]
[WhiteElo "2544"]
[BlackElo "1876"]
[Result "1-0"]
[Round "03"]
[TimeControl "180+1"]
[Date "2022.02.09"]
[WhiteClock "0:00:17"]
[BlackClock "0:00:03"]

1. d4 {[%clk 0:03:00]}  d5 {[%clk 0:02:58]} 2. c4 {[%clk 0:03:00]}  c6 {[%clk 0:02:59]} 3. cxd5 {[%clk 0:02:58]}  cxd5 {[%clk 0:02:58]} 4. Nc3 {[%clk 0:02:59]}  Nf6 {[%clk 0:02:56]} 5. Bg5 {[%clk 0:02:58]}  Ne4 {[%clk 0:02:54]} 6. Nxe4 {[%clk 0:02:58]}  dxe4 {[%clk 0:02:53]} 7. a3 {[%clk 0:02:58]}  Nc6 {[%clk 0:02:50]} 8. d5 {[%clk 0:02:51]}  Ne5 {[%clk 0:02:19]} 9. Qa4+ {[%clk 0:02:50]}  Bd7 {[%clk 0:02:07]} 10. Qxe4 {[%clk 0:02:49]}  Ng6 {[%clk 0:02:04]} 11. Nf3 {[%clk 0:02:44]}  h6 {[%clk 0:02:04]} 12. Bd2 {[%clk 0:02:41]}  e6 {[%clk 0:02:00]} 13. e3 {[%clk 0:02:36]}  Be7 {[%clk 0:01:54]} 14. dxe6 {[%clk 0:02:35]}  Bxe6 {[%clk 0:01:54]} 15. Bb5+ {[%clk 0:02:34]}  Bd7 {[%clk 0:01:55]} 16. Qxb7 {[%clk 0:02:30]}  Bxb5 {[%clk 0:01:47]} 17. Qxb5+ {[%clk 0:02:30]}  Qd7 {[%clk 0:01:34]} 18. Qxd7+ {[%clk 0:02:28]}  Kxd7 {[%clk 0:01:35]} 19. Bc3 {[%clk 0:02:28]}  f6 {[%clk 0:01:25]} 20. O-O-O+ {[%clk 0:02:27]}  Ke6 {[%clk 0:01:23]} 21. Nd4+ {[%clk 0:02:27]}  Kf7 {[%clk 0:01:24]} 22. Nf5 {[%clk 0:02:26]}  Rhc8 {[%clk 0:01:16]} 23. Kb1 {[%clk 0:02:18]}  Bxa3 {[%clk 0:01:13]} 24. Nd6+ {[%clk 0:02:04]}  Bxd6 {[%clk 0:01:11]} 25. Rxd6 {[%clk 0:02:05]}  Rab8 {[%clk 0:01:12]} 26. Kc2 {[%clk 0:01:58]}  Rb7 {[%clk 0:01:11]} 27. Rhd1 {[%clk 0:01:57]}  Rcc7 {[%clk 0:01:11]} 28. f4 {[%clk 0:01:49]}  Ne7 {[%clk 0:01:08]} 29. e4 {[%clk 0:01:48]}  Nc6 {[%clk 0:01:04]} 30. g4 {[%clk 0:01:37]}  Nb4+ {[%clk 0:00:47]} 31. Kb1 {[%clk 0:01:37]}  Nc6 {[%clk 0:00:34]} 32. h4 {[%clk 0:01:33]}  Ne7 {[%clk 0:00:34]} 33. Kc2 {[%clk 0:01:30]}  Nc8 {[%clk 0:00:34]} 34. Rd8 {[%clk 0:01:26]}  Nb6 {[%clk 0:00:34]} 35. g5 {[%clk 0:01:23]}  Na4 {[%clk 0:00:33]} 36. Kd3 {[%clk 0:00:45]}  Rxb2 {[%clk 0:00:19]} 37. g6+ {[%clk 0:00:29]}  Ke7 {[%clk 0:00:17]} 38. Bxb2 {[%clk 0:00:29]}  Nxb2+ {[%clk 0:00:16]} 39. Ke2 {[%clk 0:00:30]}  Nxd1 {[%clk 0:00:16]} 40. Rxd1 {[%clk 0:00:30]}  Rb7 {[%clk 0:00:14]} 41. Kf3 {[%clk 0:00:28]}  Rb3+ {[%clk 0:00:11]} 42. Kg4 {[%clk 0:00:28]}  Rb7 {[%clk 0:00:09]} 43. Kf5 {[%clk 0:00:28]}  Rb5+ {[%clk 0:00:09]} 44. e5 {[%clk 0:00:29]}  fxe5 {[%clk 0:00:10]} 45. fxe5 {[%clk 0:00:29]}  Rb7 {[%clk 0:00:08]} 46. Ra1 {[%clk 0:00:29]}  Rc7 {[%clk 0:00:08]} 47. Ra6 {[%clk 0:00:29]}  Rb7 {[%clk 0:00:08]} 48. Rc6 {[%clk 0:00:29]}  Rd7 {[%clk 0:00:07]} 49. Rc8 {[%clk 0:00:29]}  Rb7 {[%clk 0:00:08]} 50. Rg8 {[%clk 0:00:29]}  Rb1 {[%clk 0:00:07]} 51. Rxg7+ {[%clk 0:00:30]}  Kf8 {[%clk 0:00:08]} 52. Rxa7 {[%clk 0:00:30]}  Kg8 {[%clk 0:00:09]} 53. Kf6 {[%clk 0:00:28]}  Rf1+ {[%clk 0:00:05]} 54. Ke6 {[%clk 0:00:28]}  Rf8 {[%clk 0:00:04]} 55. h5 {[%clk 0:00:28]}  Rb8 {[%clk 0:00:03]} 56. Rh7 {[%clk 0:00:27]}  Re8+ {[%clk 0:00:01]} 57. Kf5 {[%clk 0:00:27]}  Rf8+ {[%clk 0:00:02]} 58. Ke4 {[%clk 0:00:27]}  Rc8 {[%clk 0:00:01]} 59. Rxh6 {[%clk 0:00:28]}  Kg7 {[%clk 0:00:01]} 60. Rh7+ {[%clk 0:00:28]}  Kg8 {[%clk 0:00:02]} 61. Kf5 {[%clk 0:00:26]}  Rc1 {[%clk 0:00:03]} 62. Ra7 {[%clk 0:00:24]}  Rf1+ {[%clk 0:00:03]} 63. Ke6 {[%clk 0:00:24]}  Rf8 {[%clk 0:00:03]} 64. h6 {[%clk 0:00:23]}  Re8+ {[%clk 0:00:04]} 65. Kf5 {[%clk 0:00:23]}  Kh8 {[%clk 0:00:04]} 66. Rb7 {[%clk 0:00:19]}  Rf8+ {[%clk 0:00:04]} 67. Rf7 {[%clk 0:00:19]}  Re8 {[%clk 0:00:04]} 68. e6 {[%clk 0:00:18]}  Kg8 {[%clk 0:00:03]} 69. e7 {[%clk 0:00:16]}  Rxe7 {[%clk 0:00:01]} 70. Rxe7 {[%clk 0:00:16]}  Kf8 {[%clk 0:00:02]} 71. Kf6 {[%clk 0:00:16]}  Kg8 {[%clk 0:00:03]} 72. Re8# {[%clk 0:00:17]} 1-0


[Site "https://www.chess.com"]